fUST/lending_fUST_20260422
["ID","MTS","AMOUNT","RATE_DAILY","PERIOD"]
[420954397,1776794478392,186.4782258,0.00025329,120]
[420954398,1776794478786,500.45559024,0.00025329,120]
[420954399,1776794479148,500.0,0.00025329,120]
[420954400,1776794479439,500.0,0.00025329,120]
[420954401,1776794479535,-265.0,8.5e-05,7]
[420954402,1776794479660,500.0,0.00025329,120]
[420954403,1776794479893,500.0,0.00025329,120]
[420954404,1776794480141,500.0,0.00025329,120]
[420954405,1776794480396,500.0,0.00025329,120]
[420954406,1776794480620,500.0,0.00025329,120]
[420954407,1776794480849,500.0,0.00025329,120]
[420954408,1776794481082,500.0,0.00025329,120]
[420954409,1776794481317,500.0,0.00025329,120]
[420954410,1776794481575,500.0,0.00025329,120]
[420954411,1776794481816,500.0,0.00025329,120]
[420954412,1776794482039,500.0,0.00025329,120]
[420954413,1776794482168,500.27428089,0.00025329,120]
[420954414,1776794482228,500.0,0.00025329,120]
[420954415,1776794482296,580.31,0.00025329,120]
[420954416,1776794482353,500.0,0.00025329,120]
[420954417,1776794482455,500.0,0.00025329,120]
[420954418,1776794482679,500.0,0.00025329,120]
[420954419,1776794482908,500.0,0.00025329,120]
[420954420,1776794483290,500.0,0.00025329,120]
[420954421,1776794483523,500.0,0.00025329,120]
[420954422,1776794483771,500.0,0.00025329,120]
[420954423,1776794483957,500.0,0.00025329,120]
[420954424,1776794484013,500.0,0.00025329,120]
[420954425,1776794484229,200.45485956,0.00025329,120]
[420954426,1776794484283,500.0,0.00025329,120]
[420954427,1776794484339,500.0,0.00025329,120]
[420954428,1776794484465,500.0,0.00025329,120]
[420954429,1776794484539,500.0,0.00025329,120]
[420954430,1776794484739,500.0,0.00025329,120]
[420954431,1776794484793,500.0,0.00025329,120]
[420954432,1776794484956,500.0,0.00025329,120]
[420954433,1776794485011,500.0,0.00025329,120]
[420954434,1776794485190,500.0,0.00025329,120]
[420954435,1776794485244,431.11,0.00025329,120]
[420954436,1776794485410,500.0,0.00025329,120]
[420954437,1776794485640,500.0,0.00025329,120]
[420954438,1776794485872,500.0,0.00025329,120]
[420954439,1776794485964,503.49315312,0.00025329,120]
[420954440,1776794486094,500.0,0.00025329,120]
[420954441,1776794486319,500.0,0.00025329,120]
[420954442,1776794486549,500.0,0.00025329,120]
[420954443,1776794486768,500.0,0.00025329,120]
[420954444,1776794487000,500.0,0.00025329,120]
[420954445,1776794487222,425.67866354,0.00025329,120]
[420954446,1776794488344,500.93378801,0.00025329,120]
[420954447,1776794488804,504.10654857,0.00025329,120]
[420954448,1776794490093,535.51224523,0.00025329,120]
[420954449,1776794490451,502.75175685,0.00025329,120]
[420954450,1776794490564,500.0,0.00025329,120]
[420954451,1776794491520,505.39253864,0.00025329,120]
[420954452,1776794491981,501.06728261,0.00025329,120]
[420954453,1776794492874,501.31687742,0.00025329,120]
[420954454,1776794493310,503.92828456,0.00025329,120]
[420954455,1776794494651,501.05568688,0.00025329,120]
[420954456,1776794495139,500.0,0.00025329,120]
[420954457,1776794496379,500.34399524,0.00025329,120]
[420954458,1776794498273,501.15713388,0.00025329,120]
[420954459,1776794498328,502.67023687,0.00025329,120]
[420954460,1776794498667,500.0,0.00025329,120]
[420954461,1776794498894,500.0,0.00025329,120]
[420954462,1776794499137,198.51,0.00025329,120]
[420954463,1776794500608,500.95296467,0.00025329,120]
[420954464,1776794501153,503.29,0.00025329,120]
[420954465,1776794501208,502.52634329,0.00025329,120]
[420954466,1776794501494,500.52876615,0.00025329,120]
[420954467,1776794502902,504.9096539,0.00025329,120]
[420954468,1776794504772,501.02424153,0.00025329,120]
[420954469,1776794504994,502.53338957,0.00025329,120]
[420954470,1776794506515,501.07395599,0.00025329,120]
[420954471,1776794506825,502.74089682,0.00025329,120]
[420954472,1776794506876,500.0,0.00025329,120]
[420954473,1776794507083,500.0,0.00025329,120]
[420954474,1776794507330,500.0,0.00025329,120]
[420954475,1776794507555,625.28,0.00025329,120]
[420954476,1776794507784,500.0,0.00025329,120]
[420954477,1776794508072,264.59441643,0.00025329,120]
[420954478,1776794508837,502.54450066,0.00025329,120]
[420954479,1776794508849,-200.0,8.5e-05,7]
[420954480,1776794509237,503.09531138,0.00025329,120]
[420954481,1776794509518,507.77516509,0.00025329,120]
[420954482,1776794510259,502.54359932,0.00025329,120]
[420954483,1776794510463,503.98114072,0.00025329,120]
[420954484,1776794511079,540.0025661,0.00025329,120]
[420954485,1776794511353,500.0,0.00025329,120]
[420954486,1776794511575,500.0,0.00025329,120]
[420954487,1776794511795,500.0,0.00025329,120]
[420954488,1776794512045,500.0,0.00025329,120]
[420954489,1776794512292,500.0,0.00025329,120]
[420954490,1776794512554,500.0,0.00025329,120]
[420954491,1776794512783,500.0,0.00025329,120]
[420954492,1776794513019,577.34,0.00025329,120]
[420954493,1776794513233,501.04360012,0.00025329,120]
[420954494,1776794514475,500.73285528,0.00025329,120]
[420954495,1776794514526,501.24309451,0.00025329,120]
[420954496,1776794516051,502.30882753,0.00025329,120]
[420954497,1776794516266,500.24112412,0.00025329,120]
[420954498,1776794516929,502.07507455,0.00025329,120]
[420954499,1776794518132,500.0,0.00025329,120]
[420954500,1776794518373,500.0,0.00025329,120]
[420954501,1776794518609,500.0,0.00025329,120]
[420954502,1776794518973,500.0,0.00025329,120]
[420954503,1776794519115,513.53,0.00025329,120]
[420954504,1776794519413,501.15983601,0.00025329,120]
[420954507,1776794520899,501.11403311,0.00025329,120]
[420954508,1776794521049,500.0,0.00025329,120]
[420954509,1776794521139,504.66106412,0.00025329,120]
[420954510,1776794521575,500.86903591,0.00025329,120]
[420954511,1776794523341,635.6,0.00025329,120]
[420954512,1776794524366,501.05435615,0.00025329,120]
[420954513,1776794526063,500.0,0.00025329,120]
[420954514,1776794526152,501.61712246,0.00025329,120]
[420954515,1776794526203,501.41502327,0.00025329,120]
[420954516,1776794526281,500.0,0.00025329,120]
[420954517,1776794526544,500.0,0.00025329,120]
[420954518,1776794526760,500.0,0.00025329,120]
[420954519,1776794526994,500.0,0.00025329,120]
[420954520,1776794527236,500.0,0.00025329,120]
[420954521,1776794527468,500.0,0.00025329,120]
[420954522,1776794527704,500.0,0.00025329,120]
[420954523,1776794527869,610.22884939,0.00025329,120]
[420954524,1776794527942,500.0,0.00025329,120]
[420954525,1776794528176,500.0,0.00025329,120]
[420954526,1776794528406,500.0,0.00025329,120]
[420954527,1776794528641,500.0,0.00025329,120]
[420954528,1776794528875,215.88,0.00025329,120]
[420954529,1776794529400,500.93596565,0.00025329,120]
[420954530,1776794531027,501.18615626,0.00025329,120]
[420954531,1776794531163,504.98296769,0.00025329,120]
[420954532,1776794531527,362.19650879,0.00025329,120]
[420954533,1776794531580,501.22182395,0.00025329,120]
[420954534,1776794531641,500.23708535,0.00025329,120]
[420954535,1776794532251,171.167562,0.00025329,120]
[420954536,1776794532983,505.71505254,0.00025329,120]
[420954537,1776794534883,503.14876903,0.00025329,120]
[420954538,1776794535171,501.50767626,0.00025329,120]
[420954539,1776794535883,504.85342989,0.00025329,120]
[420954540,1776794536015,508.3350833,0.00025329,120]
[420954541,1776794536672,500.0,0.00025329,120]
[420954542,1776794536904,199.53475309,0.00025329,120]
[420954543,1776794538455,500.0,0.00025329,120]
[420954544,1776794541753,505.03329672,0.00025329,120]
[420954545,1776794542759,501.02226832,0.00025329,120]
[420954546,1776794542838,514.98655546,0.00025329,120]
[420954547,1776794545541,500.0,0.00025329,120]
[420954548,1776794545771,299.48314731,0.00025329,120]
[420954549,1776794546020,637.40791888,0.00025329,120]
[420954550,1776794546074,501.2387934,0.00025329,120]
[420954551,1776794546837,500.0,0.00025329,120]
[420954552,1776794547085,500.0,0.00025329,120]
[420954553,1776794547139,500.0,0.00025329,120]
[420954554,1776794547396,595.08,0.00025329,120]
[420954555,1776794547867,500.0,0.00025329,120]
[420954556,1776794547928,518.98650237,0.00025329,120]
[420954557,1776794547987,276.08,0.00025329,120]
[420954558,1776794548043,508.44798369,0.00025329,120]
[420954559,1776794548095,514.15572339,0.00025329,120]
[420954560,1776794549697,500.6665574,0.00025329,120]
[420954561,1776794550003,597.51125153,0.00025329,120]
[420954562,1776794551192,501.26110372,0.00025329,120]
[420954563,1776794552608,503.32463262,0.00025329,120]
[420954564,1776794552662,502.6625842,0.00025329,120]
[420954565,1776794555228,500.97276022,0.00025329,120]
[420954566,1776794556314,500.0,0.00025329,120]
[420954567,1776794556393,503.3928792,0.00025329,120]
[420954568,1776794556551,500.0,0.00025329,120]
[420954569,1776794556935,500.0,0.00025329,120]
[420954570,1776794557201,500.0,0.00025329,120]
[420954571,1776794557464,500.0,0.00025329,120]
[420954572,1776794557712,500.0,0.00025329,120]
[420954573,1776794557953,500.0,0.00025329,120]
[420954574,1776794558189,605.81,0.00025329,120]
[420954575,1776794559661,620.94498918,0.00025329,120]
[420954576,1776794560847,500.0,0.00025329,120]
[420954577,1776794561078,500.0,0.00025329,120]
[420954578,1776794561267,500.0,0.00025329,120]
[420954579,1776794561343,251.39,0.00025329,120]
[420954580,1776794562601,516.12251474,0.00025329,120]
[420954581,1776794562656,502.98300935,0.00025329,120]
[420954582,1776794562924,500.0,0.00025329,120]
[420954583,1776794563263,500.0,0.00025329,120]
[420954584,1776794563315,211.89,0.00025329,120]
[420954585,1776794563492,500.0,0.00025329,120]
[420954586,1776794563725,606.58,0.00025329,120]
[420954587,1776794565049,501.6377874,0.00025329,120]
[420954588,1776794565677,581.66,0.00025329,120]
[420954589,1776794570233,500.0,0.00025329,120]
[420954590,1776794570479,500.0,0.00025329,120]
[420954591,1776794570738,396.19,0.00025329,120]
[420954592,1776794571227,265.18998721,0.00025329,120]
[420954593,1776794573598,501.16906974,0.00025329,120]
[420954594,1776794573934,500.6836998,0.00025329,120]
[420954595,1776794575128,500.43586884,0.00025329,120]
[420954596,1776794575262,500.0,0.00025329,120]
[420954597,1776794575492,325.16,0.00025329,120]
[420954598,1776794576235,500.0,0.00025329,120]
[420954599,1776794577222,500.85870353,0.00025329,120]
[420954600,1776794578410,500.0,0.00025329,120]
[420954601,1776794578644,644.24168477,0.00025329,120]
[420954602,1776794580446,501.47768141,0.00025329,120]
[420954603,1776794580997,510.68096121,0.00025329,120]
[420954604,1776794581157,500.34397589,0.00025329,120]
[420954605,1776794582449,500.51684417,0.00025329,120]
[420954606,1776794582999,500.0,0.00025329,120]
[420954607,1776794583227,500.0,0.00025329,120]
[420954608,1776794583458,228.08,0.00025329,120]
[420954609,1776794584076,501.87171975,0.00025329,120]
[420954610,1776794585982,500.48064842,0.00025329,120]
[420954611,1776794588079,500.0,0.00025329,120]
[420954612,1776794588732,502.86993513,0.00025329,120]
[420954613,1776794589391,502.4227785,0.00025329,120]
[420954614,1776794589767,500.0,0.00025329,120]
[420954615,1776794590792,502.90548413,0.00025329,120]
[420954616,1776794591523,500.0,0.00025329,120]
[420954617,1776794591757,180.52,0.00025329,120]
[420954618,1776794592133,502.87423426,0.00025329,120]
[420954619,1776794592763,506.52856933,0.00025329,120]
[420954620,1776794593828,506.67520811,0.00025329,120]
[420954621,1776794595539,505.79849188,0.00025329,120]
[420954622,1776794598272,502.94204746,0.00025329,120]
[420954623,1776794598522,642.21425646,0.00025329,120]
[420954624,1776794598825,500.0,0.00025329,120]
[420954625,1776794599069,500.0,0.00025329,120]
[420954626,1776794599318,500.0,0.00025329,120]
[420954627,1776794599541,500.0,0.00025329,120]
[420954628,1776794599768,630.68,0.00025329,120]
[420954629,1776794601501,500.0,0.00025329,120]
[420954630,1776794601740,581.26,0.00025329,120]
[420954631,1776794602571,500.0,0.00025329,120]
[420954632,1776794602797,500.0,0.00025329,120]
[420954633,1776794603030,450.94,0.00025329,120]
[420954634,1776794603536,502.97496727,0.00025329,120]
[420954635,1776794603610,500.69255172,0.00025329,120]
[420954636,1776794606102,500.84249037,0.00025329,120]
[420954637,1776794607881,505.05322805,0.00025329,120]
[420954638,1776794608305,495.1712125,0.00025329,120]
[420954639,1776794609049,500.76896498,0.00025329,120]
[420954640,1776794609504,500.0,0.00025329,120]
[420954641,1776794609661,501.82285802,0.00025329,120]
[420954642,1776794609722,500.0,0.00025329,120]
[420954643,1776794609951,199.38,0.00025329,120]
[420954644,1776794611341,358.73150407,0.00025329,120]
[420954645,1776794611691,502.31513272,0.00025329,120]
[420954646,1776794612835,500.93326929,0.00025329,120]
[420954647,1776794612941,508.17102555,0.00025329,120]
[420954648,1776794613429,500.30280924,0.00025329,120]
[420954649,1776794613987,500.22887914,0.00025329,120]
[420954650,1776794614546,500.0,0.00025329,120]
[420954651,1776794614765,500.0,0.00025329,120]
[420954652,1776794614819,500.0,0.00025329,120]
[420954653,1776794614999,500.0,0.00025329,120]
[420954654,1776794615217,500.0,0.00025329,120]
[420954655,1776794615474,538.58,0.00025329,120]
[420954656,1776794616080,619.66306898,0.00025329,120]
[420954657,1776794616697,501.34476977,0.00025329,120]
[420954658,1776794618731,500.0,0.00025329,120]
[420954659,1776794618784,501.0254258,0.00025329,120]
[420954660,1776794618957,490.75,0.00025329,120]
[420954661,1776794620655,500.0,0.00025329,120]
[420954662,1776794620755,502.49447135,0.00025329,120]
[420954663,1776794620891,500.0,0.00025329,120]
[420954664,1776794621248,614.15,0.00025329,120]
[420954665,1776794622583,500.0,0.00025329,120]
[420954666,1776794623012,500.0,0.00025329,120]
[420954667,1776794624355,500.72202233,0.00025329,120]
[420954668,1776794624982,574.82050284,0.00025329,120]
[420954669,1776794626761,505.54513909,0.00025329,120]
[420954670,1776794627856,500.58485394,0.00025329,120]
[420954671,1776794631571,574.11046216,0.00025329,120]
[420954672,1776794633185,502.64883848,0.00025329,120]
[420954673,1776794634897,543.175308,0.00025329,120]
[420954674,1776794635398,500.0,0.00025329,120]
[420954675,1776794636630,500.98102604,0.00025329,120]
[420954676,1776794637469,500.0,0.00025329,120]
[420954677,1776794637776,500.0,0.00025329,120]
[420954678,1776794638932,266.10220722,0.00025329,120]
[420954679,1776794641370,501.17886297,0.00025329,120]
[420954680,1776794641427,502.2373414,0.00025329,120]
[420954681,1776794642201,500.22029305,0.00025329,120]
[420954682,1776794643282,503.09147052,0.00025329,120]
[420954683,1776794644830,500.90279284,0.00025329,120]
[420954684,1776794645064,500.0,0.00025329,120]
[420954685,1776794645298,500.22,0.00025329,120]
[420954686,1776794645905,500.46803073,0.00025329,120]
[420954687,1776794646562,500.52116546,0.00025329,120]
[420954688,1776794648301,504.94203477,0.00025329,120]
[420954689,1776794652354,503.55518401,0.00025329,120]
[420954690,1776794653961,500.89760233,0.00025329,120]
[420954691,1776794654951,500.33300881,0.00025329,120]
[420954692,1776794655740,500.48316578,0.00025329,120]
[420954693,1776794659614,501.13357345,0.00025329,120]
[420954694,1776794660452,500.0,0.00025329,120]
[420954695,1776794660709,398.82346997,0.00025329,120]
[420954696,1776794662563,500.72051905,0.00025329,120]
[420954697,1776794662793,221.93710881,0.00025329,120]
[420954698,1776794664353,503.94798694,0.00025329,120]
[420954699,1776794666438,500.0,0.00025329,120]
[420954700,1776794666707,500.75542323,0.00025329,120]
[420954701,1776794667078,500.0,0.00025329,120]
[420954702,1776794667329,500.0,0.00025329,120]
[420954703,1776794667569,500.0,0.00025329,120]
[420954704,1776794667808,500.0,0.00025329,120]
[420954705,1776794668060,500.0,0.00025329,120]
[420954706,1776794668297,500.0,0.00025329,120]
[420954707,1776794668570,610.31,0.00025329,120]
[420954708,1776794669386,501.2803963,0.00025329,120]
[420954709,1776794669910,502.12800346,0.00025329,120]
[420954710,1776794670203,500.60327975,0.00025329,120]
[420954711,1776794670391,502.51969207,0.00025329,120]
[420954712,1776794672526,504.63349069,0.00025329,120]
[420954713,1776794673656,500.36403119,0.00025329,120]
[420954714,1776794675439,504.05663695,0.00025329,120]
[420954715,1776794676093,506.58747364,0.00025329,120]
[420954716,1776794677199,500.80606109,0.00025329,120]
[420954717,1776794677523,500.0,0.00025329,120]
[420954718,1776794677588,288.9621466,0.00025329,120]
[420954719,1776794679293,501.81315901,0.00025329,120]
[420954720,1776794680070,329.28123712,0.00025329,120]
[420954721,1776794680424,513.19730793,0.00025329,120]
[420954722,1776794681989,503.68801255,0.00025329,120]
[420954723,1776794683587,500.78995786,0.00025329,120]
[420954724,1776794685226,501.2780454,0.00025329,120]
[420954725,1776794686905,500.0,0.00025329,120]
[420954726,1776794687908,501.85271262,0.00025329,120]
[420954727,1776794692498,502.63581982,0.00025329,120]
[420954728,1776794693776,503.28274226,0.00025329,120]
[420954729,1776794694086,502.93326841,0.00025329,120]
[420954730,1776794694178,207.81504256,0.00025329,120]
[420954731,1776794694288,502.50216973,0.00025329,120]
[420954732,1776794696319,501.56043921,0.00025329,120]
[420954733,1776794698609,500.0,0.00025329,120]
[420954734,1776794698779,502.23749789,0.00025329,120]
[420954735,1776794699018,500.54010254,0.00025329,120]
[420954736,1776794699167,238.55,0.00025329,120]
[420954737,1776794699480,500.94175361,0.00025329,120]
[420954738,1776794700844,501.44119417,0.00025329,120]
[420954740,1776794702742,506.43096292,0.00025329,120]
[420954743,1776794704286,500.92915924,0.00025329,120]
[420954744,1776794704533,504.35870885,0.00025329,120]
[420954745,1776794705715,500.0,0.00025329,120]
[420954746,1776794705941,500.0,0.00025329,120]
[420954747,1776794706176,264.03,0.00025329,120]
[420954748,1776794707810,503.22382547,0.00025329,120]
[420954749,1776794708523,500.0,0.00025329,120]
[420954750,1776794708751,597.20208944,0.00025329,120]
[420954751,1776794708945,500.0,0.00025329,120]
[420954752,1776794709359,500.0,0.00025329,120]
[420954753,1776794709479,560.3,0.00025329,120]
[420954754,1776794709537,505.1621986,0.00025329,120]
[420954755,1776794710560,501.02416128,0.00025329,120]
[420954756,1776794711601,501.11694905,0.00025329,120]
[420954757,1776794711835,500.0,0.00025329,120]
[420954758,1776794713323,504.21221212,0.00025329,120]
[420954759,1776794719827,501.23243761,0.00025329,120]
[420954760,1776794720773,502.11436812,0.00025329,120]
[420954761,1776794720859,501.27736188,0.00025329,120]
[420954762,1776794722281,503.10683109,0.00025329,120]
[420954763,1776794723761,501.63360806,0.00025329,120]
[420954769,1776794725375,504.33752052,0.00025329,120]
[420954779,1776794727104,502.66007492,0.00025329,120]
[420954780,1776794727937,500.0,0.00025329,120]
[420954781,1776794728645,240.31864211,0.00025329,120]
[420954782,1776794728794,504.22774641,0.00025329,120]
[420954783,1776794730389,501.3135753,0.00025329,120]
[420954787,1776794732263,503.97610946,0.00025329,120]
[420954799,1776794734974,375.0534483,0.00025329,120]
[420954800,1776794737070,500.67846982,0.00025329,120]
[420954801,1776794739889,501.27357012,0.00025329,120]
[420954802,1776794741120,502.71526457,0.00025329,120]
[420954806,1776794742918,500.0,0.00025329,120]
[420954807,1776794742971,505.74183119,0.00025329,120]
[420954808,1776794745834,502.151022,0.00025329,120]
[420954809,1776794747047,500.94660752,0.00025329,120]
[420954810,1776794747633,513.83637584,0.00025329,120]
[420954811,1776794747689,500.51619835,0.00025329,120]
[420954817,1776794748707,500.34536271,0.00025329,120]
[420954820,1776794750250,507.75031946,0.00025329,120]
[420954821,1776794750447,502.76522037,0.00025329,120]
[420954822,1776794751057,502.25415259,0.00025329,120]
[420954823,1776794751572,500.75898392,0.00025329,120]
[420954824,1776794752149,503.81021517,0.00025329,120]
[420954825,1776794753846,503.52956923,0.00025329,120]
[420954826,1776794755103,502.62098435,0.00025329,120]
[420954827,1776794756037,500.0,0.00025329,120]
[420954828,1776794756217,500.71932476,0.00025329,120]
[420954829,1776794756269,500.0,0.00025329,120]
[420954830,1776794756490,364.21,0.00025329,120]
[420954831,1776794756739,400.0,0.00025329,120]
[420954832,1776794756905,306.63405378,0.00025329,120]
[420954833,1776794758355,502.83954167,0.00025329,120]
[420954834,1776794760071,500.74896757,0.00025329,120]
[420954835,1776794761303,501.71969744,0.00025329,120]
[420954836,1776794761779,501.14766662,0.00025329,120]
[420954837,1776794766750,504.79724518,0.00025329,120]
[420954838,1776794767202,501.03781148,0.00025329,120]
[420954839,1776794768459,500.0,0.00025329,120]
[420954840,1776794768514,501.01689007,0.00025329,120]
[420954841,1776794768694,248.65,0.00025329,120]
[420954842,1776794770207,500.24630726,0.00025329,120]
[420954843,1776794770415,504.52925836,0.00025329,120]
[420954844,1776794771917,504.00562906,0.00025338,120]
[420954845,1776794772140,504.7790594,0.00025338,120]
[420954846,1776794773608,552.14546295,0.00025338,120]
[420954847,1776794774472,500.0,0.00025338,120]
[420954848,1776794774705,536.63189851,0.00025338,120]
[420954849,1776794775601,500.7932309,0.00025338,120]
[420954850,1776794776918,506.41666759,0.00025338,120]
[420954851,1776794783993,503.68777038,0.00025338,120]
[420954852,1776794784978,500.34209026,0.00025338,120]
[420954853,1776794785734,501.01323013,0.00025338,120]
[420954854,1776794787508,502.56915755,0.00025338,120]
[420954855,1776794790555,504.06585412,0.00025338,120]
[420954856,1776794790985,500.98210918,0.00025338,120]
[420954857,1776794792306,500.0,0.00025338,120]
[420954858,1776794792830,500.0,0.00025338,120]
[420954859,1776794793065,306.97583883,0.00025338,120]
[420954860,1776794794314,500.33328619,0.00025338,120]
[420954861,1776794794813,502.63203924,0.00025338,120]
[420954862,1776794795727,501.9098765,0.00025338,120]
[420954863,1776794796728,509.91818907,0.00025338,120]
[420954864,1776794797482,514.19927445,0.00025338,120]
[420954865,1776794800704,504.15308607,0.00025338,120]
[420954866,1776794801744,500.8196503,0.00025338,120]
[420954867,1776794801795,500.0,0.00025338,120]
[420954868,1776794803721,511.35228546,0.00025338,120]
[420954869,1776794809910,503.93136135,0.00025338,120]
[420954870,1776794810485,500.0,0.00025338,120]
[420954871,1776794810602,502.07143238,0.00025338,120]
[420954872,1776794810954,503.72039037,0.00025338,120]
[420954873,1776794813298,501.08144471,0.00025338,120]
[420954874,1776794814101,499.48914973,0.00025338,120]
[420954875,1776794814873,501.2226138,0.00025338,120]
[420954876,1776794815948,505.20185316,0.00025338,120]
[420954877,1776794819205,537.11195634,0.00025338,120]
[420954878,1776794820023,502.14752982,0.00025338,120]
[420954879,1776794821500,500.0,0.00025338,120]
[420954880,1776794823211,500.3898171,0.00025338,120]
[420954881,1776794823353,462.12444328,0.00025338,120]
[420954882,1776794824213,154.3480088,0.00025338,120]
[420954883,1776794825207,509.68550416,0.00025338,120]
[420954884,1776794825472,495.15189536,0.00025338,120]
[420954885,1776794826206,503.48431415,0.00025338,120]
[420954886,1776794827428,502.27434288,0.00025338,120]
[420954887,1776794828041,503.76316483,0.00025338,120]
[420954888,1776794828505,501.20657067,0.00025338,120]
[420954889,1776794833156,504.08565181,0.00025338,120]
[420954890,1776794834027,503.03323721,0.00025338,120]
[420954891,1776794836123,409.48423006,0.00025338,120]
[420954892,1776794836460,504.71872664,0.00025338,120]
[420954893,1776794838284,502.95496882,0.00025338,120]
[420954894,1776794838715,507.52571483,0.00025338,120]
[420954895,1776794845002,503.38290017,0.00025338,120]
[420954897,1776794845898,500.0,0.00025338,120]
[420954898,1776794847506,500.0,0.00025338,120]
[420954899,1776794847839,566.98773915,0.00025338,120]
[420954900,1776794848597,500.0,0.00025338,120]
[420954901,1776794848835,500.0,0.00025338,120]
[420954902,1776794849066,500.0,0.00025338,120]
[420954903,1776794849298,597.9,0.00025338,120]
[420954904,1776794853258,500.0,0.00025338,120]
[420954905,1776794853499,192.81766566,0.00025338,120]
[420954906,1776794853946,504.83417307,0.00025338,120]
[420954907,1776794855191,500.8096287,0.00025338,120]
[420954908,1776794855876,507.35979569,0.00025338,120]
[420954909,1776794856930,506.77125927,0.00025338,120]
[420954910,1776794858016,504.7718186,0.00025338,120]
[420954911,1776794858163,321.34288884,0.00025338,120]
[420954912,1776794859445,220.42965283,0.00025338,120]
[420954913,1776794859707,502.59724981,0.00025338,120]
[420954914,1776794861478,501.54428149,0.00025338,120]
[420954915,1776794863033,500.30026537,0.00025338,120]
[420954916,1776794864023,500.0,0.00025338,120]
[420954917,1776794866186,348.23229207,0.00025338,120]
[420954918,1776794867979,503.42004528,0.00025338,120]
[420954919,1776794868552,502.07353113,0.00025338,120]
[420954920,1776794870814,511.17545252,0.00025338,120]
[420954921,1776794872055,508.18914218,0.00025338,120]
[420954922,1776794875745,500.0,0.00025338,120]
[420954923,1776794875965,500.0,0.00025338,120]
[420954924,1776794876190,236.53107301,0.00025338,120]
[420954925,1776794876372,501.21858347,0.00025338,120]
[420954926,1776794877024,500.0,0.00025338,120]
[420954927,1776794877294,500.0,0.00025338,120]
[420954928,1776794877529,500.0,0.00025338,120]
[420954929,1776794877675,505.41307887,0.00025338,120]
[420954930,1776794877764,183.44,0.00025338,120]
[420954931,1776794879624,505.07818545,0.00025338,120]
[420954932,1776794881079,503.56137369,0.00025338,120]
[420954933,1776794881289,507.50810885,0.00025338,120]
[420954934,1776794883327,501.32192372,0.00025338,120]
[420954935,1776794884417,496.07978127,0.00025338,120]
[420954937,1776794887701,500.0,0.00025338,120]
[420954938,1776794888003,500.0,0.00025338,120]
[420954939,1776794888091,501.79501394,0.00025338,120]
[420954940,1776794888248,500.0,0.00025338,120]
[420954941,1776794888490,437.8,0.00025338,120]